Cogmind - Beta 15 @@@ ROGUE MODE // 2025.05.05 @ 22:16:01 Player: Cereal Killer Result: Destroyed by R3-349(h) with Bolt Gun Performance ------------- Evolutions (0) 0 Regions Visited (4) 800 Robots Destroyed (12) 60 Value Destroyed (504) 504 Prototype IDs (14) 280 Alien Tech Used (0) 0 Bonus (923) 923 TOTAL SCORE: 2567 Bonus ------- Follower Combat Kills 123 Registered with UFD 300 Met Optimus in HQ 500 Cogmind --------- Core Integrity 0/250 Matter 189/300 Energy 100/100 System Corruption 1% Temperature Cool (0) Movement Rolling (51) Location -9/Scraptown Parts ------- > --- POWER (1) -------- (None) > --- PROPULSION (2) --- Armored Wheel > --- UTILITY (2) ------ Rocket Booster > --- WEAPON (2) ------- (None) > --- INVENTORY (5) ---- Graviton Reactor Experimental Terrain Scan Processor Mapping Drone Bay (3/3) Vortex Trap Peak State ------------ > --- POWER ------------ Graviton Reactor > --- PROPULSION ------- Wheel Wheel > --- UTILITY ---------- Large Storage Unit Improved Phase Shifter > --- WEAPON ----------- Helical Railgun Advanced Assault Cannon > --- INVENTORY -------- Graviton Reactor Armored Wheel Scrap Suit Advanced Heat Sink Cooling System Deep Structural Scanner Advanced Sensor Array Experimental Terrain Scan Processor Mapping Drone Bay Thermic Laser Assault Cannon CPS Tube CPS Tube Vortex Trap [Rating: 38] Favorites ----------- Power Improved Ion Engine Engine Improved Ion Engine Reactor Graviton Reactor Propulsion Wheel Wheel Wheel Utility Small Storage Unit Device Structural Scanner Storage Small Storage Unit Protection Light Armor Plating Weapon Medium Laser Energy Gun Medium Laser Ballistic Gun Helical Railgun Ballistic Cannon Advanced Assault Cannon Piercing Weapon Heavy Pick Build | -11 -10 -10 -10 -9 ------- Run | Yrd Mat Min Sub Scr Slots Evolved . | . . . . . Power . | . . . . . Propulsion . | . . . . . Utility . | . . . . . Weapon . | . . . . . Parts Attached 25 | 6 . 2 1 16 Power 5 | 1 . 1 . 3 Engine 3 | 1 . 1 . 1 Core . | . . . . . Reactor 2 | . . . . 2 Propulsion 3 | 2 . . . 1 Treads . | . . . . . Leg . | . . . . . Wheel 3 | 2 . . . 1 Hover . | . . . . . Flight . | . . . . . Utility 10 | 1 . 1 1 7 Device 5 | . . 1 1 3 Storage 3 | 1 . . . 2 Processor . | . . . . . Hackware . | . . . . . Protection 2 | . . . . 2 Artifact . | . . . . . Weapon 7 | 2 . . . 5 Energy Gun 3 | 2 . . . 1 Energy Cannon . | . . . . . Ballistic Gun 1 | . . . . 1 Ballistic Cannon 2 | . . . . 2 Launcher . | . . . . . Special Weapon . | . . . . . Impact Weapon . | . . . . . Slashing Weapon . | . . . . . Piercing Weapon 1 | . . . . 1 Special Melee Weapon . | . . . . . Unidentified Prototypes 2 | . . . . 2 Parts Lost 13 | . . 1 2 10 Power 3 | . . 1 1 1 Propulsion 2 | . . . . 2 Utility 4 | . . . 1 3 Weapon 4 | . . . . 4 Highest Loss Streak 9 | . . 1 2 9 To Critical Strikes . | . . . . . Average Backups 8 | 4 4 4 5 9 Power . | 1 1 . . . Propulsion 1 | 2 2 2 2 1 Utility 3 | . . . . 4 Weapon 2 | . 1 2 2 2 Tool/Special . | . . . . . Unused Backups 16 | . . . . 16 Power . | . . . . . Propulsion 3 | . . . . 3 Utility 8 | . . . . 8 Weapon 3 | . . . . 3 Tool/Special 2 | . . . . 2 Average Slot Usage (%) 93 | . 85 99 90 92 Engine 8 | . 14 14 6 7 Wheel 27 | . 28 28 28 27 Device 4 | . . 13 12 1 Storage 14 | . 14 14 14 14 Protection 9 | . . . . 12 Energy Gun 20 | . 28 28 28 18 Ballistic Cannon 5 | . . . . 7 Peak Build Rating 38 | 6 6 7 8 38 Average Rating 11 | 2 6 6 7 14 On Entrance 5 | . 6 6 7 8 Naked Turns . | . . . . . Heaviest Build 49 | 14 14 15 13 49 Greatest Support 20 | 20 20 20 20 20 Greatest Overweight (x) 4 | . . . . 4 Average Overweight (x) . | . . . . . Largest Inventory Capacity 15 | 8 8 8 8 15 Average Capacity 10 | 7 8 8 8 11 Most Carried 15 | 8 6 6 8 15 Average Carried 8 | 4 4 4 5 10 Final Capacity 8 | 8 8 8 8 5 Final Carried 8 | 4 6 4 8 4 Class Distribution -------------------- 100% | Mutant Dominant Class ---------------- Mutant | -10/Materials Mutant | -10/Mines Mutant | -10/Subcaves Mutant | -9/Scraptown Resources | -11 -10 -10 -10 -9 ----------- Run | Yrd Mat Min Sub Scr Matter Collected 505 | 247 . 28 10 220 Remotely . | . . . . . Salvage Created 598 | . 16 84 . 498 Parts 37 | . 2 2 . 33 Haulers Intercepted . | . . . . . Recyclers Shooed . | . . . . . Parts Field Recycled . | . . . . . Retrieved Matter . | . . . . . Parts Self-Destructed . | . . . . . Prevented . | . . . . . Kills | -11 -10 -10 -10 -9 ------- Run | Yrd Mat Min Sub Scr Combat Hostiles Destroyed 11 | . . 2 . 9 Guns 8 | . . 2 . 6 Cannons 3 | . . . . 3 Classes Destroyed 6 | . 1 1 . 4 Watcher 1 | . 1 . . . Grunt 2 | . . 2 . . Federalist 1 | . . . . 1 Ranger 2 | . . . . 2 Guru 1 | . . . . 1 Scrapper 5 | . . . . 5 Best Kill Streak 4 | . 1 2 . 4 Combat Bots Only 4 | . . 2 . 4 Max Kills in Single Turn 1 | . 1 1 . 1 Gunslinging . | . . . . . Exploded . | . . . . . Melee . | . . . . . Uniques/NPCs Destroyed . | . . . . . Combat | -11 -10 -10 -10 -9 -------- Run | Yrd Mat Min Sub Scr Hostile Shots Fired 131 | . 2 9 13 107 Missed 26 | . . . 5 21 Hits 105 | . 2 9 8 86 Projectile 105 | . 2 9 8 86 Critical Strikes 5 | . 1 . 1 3 Damage Taken 1347 | . 34 117 155 1041 Core 254 | . . 30 35 189 Absorbed by Shields . | . . . . . Core Remaining (%) 100 | 100 . . . . Volleys Fired 36 | . 1 8 4 23 Largest 2 | . 2 2 2 2 Hottest 100 | . 100 100 100 90 Shots Fired 67 | . 2 16 8 41 Gun 47 | . 2 16 8 21 Cannon 20 | . . . . 20 Launcher . | . . . . . Special . | . . . . . Kinetic 40 | . . . . 40 Thermal 27 | . 2 16 8 1 Explosive . | . . . . . Electromagnetic . | . . . . . Robot Hit Streak 8 | . 1 4 4 8 Robot Miss Streak 2 | . . 1 1 2 Penetration Max . | . . . . . Secondary Targets . | . . . . . Shots Hit Robots 45 | . 1 11 5 28 Core Hits 20 | . 1 5 2 12 Critical Kills . | . . . . . Critical Parts Destroyed 1 | . . . . 1 Critical Strikes 2 | . . 1 . 1 Burn 1 | . . 1 . . Destroy 1 | . . . . 1 Melee Attacks 1 | . . . . 1 Impact . | . . . . . Slashing . | . . . . . Piercing 1 | . . . . 1 Sneak Attacks . | . . . . . Combat Hostiles . | . . . . . Follow-up Attacks . | . . . . . Damage Inflicted 959 | . 13 139 63 744 Guns 640 | . 13 139 63 425 Cannons 319 | . . . . 319 Explosions . | . . . . . Melee . | . . . . . Ramming . | . . . . . Kinetic 732 | . . . . 732 Thermal 227 | . 13 139 63 12 Explosive . | . . . . . Electromagnetic . | . . . . . Impact . | . . . . . Slashing . | . . . . . Piercing . | . . . . . Highest Corruption 1 | . . . . 1 Average Corruption 1 | . . . . 1 Corruption Purged . | . . . . . Corruption Blocked . | . . . . . Effects 1 | . . . . 1 Energy Discharges 1 | . . . . 1 Overload Shots . | . . . . . Overflow Damage . | . . . . . Projectiles . | . . . . . Explosions . | . . . . . Melee . | . . . . . Knockbacks 4 | . . . . 4 Impact . | . . . . . Kinetic 4 | . . . . 4 Secondary . | . . . . . Self-Inflicted Damage . | . . . . . Shots . | . . . . . Rammed . | . . . . . Targets Rammed . | . . . . . Kicked . | . . . . . Crushed . | . . . . . Highest Temperature 302 | . 39 213 27 302 Average Temperature 85 | . 20 108 15 77 Received Heat Transfer 579 | . 36 66 30 447 Effects 1 | . . . . 1 Energy Bleed 1 | . . . . 1 Siege Activations . | . . . . . Martial Activations . | . . . . . Shielding Activations . | . . . . . Robots Disrupted . | . . . . . Combat Hostiles . | . . . . . Robots Corrupted . | . . . . . Combat Hostiles . | . . . . . Parts Fried . | . . . . . Impact Corruptions . | . . . . . Robots Melted . | . . . . . Combat Hostiles . | . . . . . Parts Melted 1 | . . 1 . . Heat Transferred 728 | . 37 481 185 25 Parts Sabotaged . | . . . . . Parts Stolen . | . . . . . Parts Stripped . | . . . . . Power Chain Reactions . | . . . . . Alert | -11 -10 -10 -10 -9 ------- Run | Yrd Mat Min Sub Scr Maximum Alert Level . | . . . . . Low Security (%) 100 | 100 100 100 . . Level 1 . | . . . . . Level 2 . | . . . . . Level 3 . | . . . . . Level 4 . | . . . . . Level 5 . | . . . . . High Security . | . . . . . Max Security . | . . . . . Peak Influence 40 | . 20 40 . . Initial 7 | . . 7 . . Average 6 | . 5 8 . . Influence Increases 113 | . 37 50 26 . Destroy 0b10 Robot/C 60 | . . 40 20 . Destroy 0b10 Robot/NC 5 | . 5 . . . Destroy Leader 12 | . 2 10 . . Allied During Kill 6 | . . . 6 . Lose Combat Pursuer 30 | . 30 . . . Influence Decreases 113 | . 17 70 26 . Entered New Map 13 | . . 13 . . Time Decay 100 | . 17 57 26 . Squads Dispatched . | . . . . . Investigation . | . . . . . Extermination . | . . . . . Reinforcement . | . . . . . Assault . | . . . . . Garrison . | . . . . . Intercept . | . . . . . Searches Triggered . | . . . . . Construction Impeded . | . . . . . Haulers Reinforced . | . . . . . Active Scanning Responses . | . . . . . Cargo Convoy Interrupts . | . . . . . Stealth | -11 -10 -10 -10 -9 --------- Run | Yrd Mat Min Sub Scr Distress Signals 1 | . 1 . . . Communications Jammed . | . . . . . Distress Signals . | . . . . . Times Spotted 25 | . 6 2 3 14 Peak Tracking Total 5 | . 5 2 2 5 Tactical Retreats 1 | . 1 . . . Traps | -11 -10 -10 -10 -9 ------- Run | Yrd Mat Min Sub Scr Traps Triggered . | . . . . . Indirectly . | . . . . . Trap Hack Attempts . | . . . . . Triggered . | . . . . . Disarmed . | . . . . . Reprogrammed . | . . . . . Reused . | . . . . . Traps Extracted . | . . . . . Installed . | . . . . . Triggered . | . . . . . Most Traps Carried 1 | . . . . 1 Machines | -11 -10 -10 -10 -9 ---------- Run | Yrd Mat Min Sub Scr Machines Disabled 1 | . . . . 1 Max in Single Turn 1 | . . . . 1 Machines Repaired . | . . . . . Machines Dismantled . | . . . . . Machines Sabotaged . | . . . . . Overloaded Fab Kills . | . . . . . Hacking | -11 -10 -10 -10 -9 --------- Run | Yrd Mat Min Sub Scr Machines Accessed 7 | . . . . 7 Terminals . | . . . . . Fabricators . | . . . . . Repair Stations . | . . . . . Recycling Units . | . . . . . Scanalyzers . | . . . . . Garrison Access . | . . . . . Total Hacks 54 | . . . . 54 Successful 54 | . . . . 54 Failed . | . . . . . Catastrophic . | . . . . . Database Lockouts . | . . . . . Manual . | . . . . . Terminals . | . . . . . Fabricators . | . . . . . Repair Stations . | . . . . . Recycling Units . | . . . . . Scanalyzers . | . . . . . Garrison Access . | . . . . . Terminal Hacks 54 | . . . . 54 Record 49 | . . . . 49 Robot Analysis 4 | . . . . 4 Proto ID Catalog 1 | . . . . 1 Fabricator Hacks . | . . . . . Repair Station Hacks . | . . . . . Recycling Unit Hacks . | . . . . . Scanalyzer . | . . . . . Garrison Access Hacks . | . . . . . Unauthorized Hacks . | . . . . . Terminals . | . . . . . Fabricators . | . . . . . Repair Stations . | . . . . . Recycling Units . | . . . . . Scanalyzers . | . . . . . Garrison Access . | . . . . . Data Cores Recovered . | . . . . . Used . | . . . . . Hacking Detections . | . . . . . Full Trace Events . | . . . . . Feedback Events . | . . . . . Feedback Blocked . | . . . . . Robot Schematics Acquired . | . . . . . Robots Built . | . . . . . Authchips . | . . . . . Time . | . . . . . Total Robot Build Rating . | . . . . . Part Schematics Acquired . | . . . . . Parts Built . | . . . . . Authchips . | . . . . . Time . | . . . . . Total Part Build Rating . | . . . . . Parts Repaired . | . . . . . Time . | . . . . . Parts Recycled . | . . . . . Recycled Matter . | . . . . . Retrieved Matter . | . . . . . Retrieved Components . | . . . . . Parts Scanalyzed . | . . . . . Part Schematics Acquired . | . . . . . Parts Damaged . | . . . . . Bothacking | -11 -10 -10 -10 -9 ------------ Run | Yrd Mat Min Sub Scr Used RIF Installer . | . . . . . Robots Hacked . | . . . . . Non-combat . | . . . . . Combat . | . . . . . Robot Hacks Applied . | . . . . . Relay Couplers Released . | . . . . . Fabnet Peak Effective % . | . . . . . Robots Rewired . | . . . . . Allies Hacked . | . . . . . Hacks Repelled . | . . . . . Allies | -11 -10 -10 -10 -9 -------- Run | Yrd Mat Min Sub Scr Total Allies 5 | . . 5 . . Largest Group 5 | . . 5 5 5 Highest-Rated Group 85 | . . 85 85 85 Highest-Rated Ally 31 | . . 31 31 31 Total Orders . | . . . . . Ally Attacks 26 | . . . 15 11 Total Damage 341 | . . . 187 154 Kills 4 | . . . 3 1 Allies Corrupted . | . . . . . Allies Melted 3 | . . . . 3 Intel | -11 -10 -10 -10 -9 ------- Run | Yrd Mat Min Sub Scr Active Infowar (turns) 474 | . . 281 187 6 Optics 106 | . . . 100 6 Structural 368 | . . 281 87 . Robot Analysis Total 4 | . . . . 4 Derelict Logs Recovered 3 | . . 1 1 1 Drone Launches . | . . . . . Drone Recoveries . | . . . . . Exploration | -11 -10 -10 -10 -9 ------------- Run | Yrd Mat Min Sub Scr Turns Passed 2096 | 42 53 282 207 1512 Spaces Moved 2012 | 38 60 256 199 1459 Core 13 | 13 . . . . Treads . | . . . . . Legs . | . . . . . Wheels 1999 | 25 60 256 199 1459 Hover . | . . . . . Flight . | . . . . . Fastest Speed 50 | 50 80 80 80 51 Average Speed 88 | 69 80 80 80 92 Slowest Speed 140 | 80 80 80 80 140 Overloaded Moves . | . . . . . Propulsion Burnouts . | . . . . . Robots Hopped . | . . . . . Potential Cave-ins . | . . . . . Cave-ins Triggered . | . . . . . Exploration Rate (%) 37 | 3 28 58 17 83 Regions Visited 4 Branch Regions 3 Pre-discovered Areas 6 | . . 1 . 5 Known Exits Taken . | . . . . . Unknown Exits Taken 4 | 1 1 1 1 . Scrap Searched 4 | . . 1 . 3 Spaces Dug 1 | . . . . 1 Terrain Destroyed 11 | . . . . 11 Melee 1 | . . . . 1 Projectile 10 | . . . . 10 AOE . | . . . . . Terrain Rammed . | . . . . . Walls Destroyed . | . . . . . Machines Disabled . | . . . . . Actions | -11 -10 -10 -10 -9 --------- Run | Yrd Mat Min Sub Scr Total 2252 | 53 62 316 238 1583 Wait 123 | . . 51 30 42 Move 2008 | 37 59 255 198 1459 Hop . | . . . . . Pick Up 36 | 10 2 . 5 19 Fast Attach 6 | . . . . 6 Attach 16 | 6 . 2 1 7 Detach 1 | . . . . 1 Swap 4 | . . . . 4 Drop 21 | . . . . 21 Fire 36 | . 1 8 4 23 Melee 1 | . . . . 1 Ram . | . . . . . Kick . | . . . . . Crush . | . . . . . Escape Stasis . | . . . . . Rewire . | . . . . . Trap . | . . . . . Miscellaneous . | . . . . . Route ------- -11/Scrapyard -10/Materials -10/Mines (discovered 3 exits: [*Mat x2] / [*Sub]) -10/Subcaves (discovered 2 exits: [*Mat] / *Scr) -9/Scraptown (discovered 2 exits: *Fac x2) History --------- Turn | Location | Event 10 | -11/Scrapyard | Discovered new exit (range 16) 43 | -11/Scrapyard | Entered Materials 89 | -10/Materials | Discovered new exit (range 6) 96 | -10/Materials | Entered Mines 96 | -10/Mines | Discovered new exit (range 14) 228 | -10/Mines | Learned location of Storage (-9) 239 | -10/Mines | Assisted by bots powering up and referring to "LRC-V3" 300 | -10/Mines | Build established: Mutant 314 | -10/Mines | Discovered new exit (range 13) 330 | -10/Mines | Discovered new exit (range 14) 378 | -10/Mines | Entered Subcaves 378 | -10/Subcaves | Accompanied by 5 allies 379 | -10/Subcaves | Approached by a straggling Scientist 383 | -10/Subcaves | Led the pair of lost Derelicts to an unsafe place 442 | -10/Subcaves | A swath of the cavern ceiling suddenly collapsed 503 | -10/Subcaves | Scientist uncovered a shortcut to Scraptown 519 | -10/Subcaves | Discovered new exit (range 10) 585 | -10/Subcaves | Entered Scraptown 585 | -9/Scraptown | Accompanied by 5 allies 641 | -9/Scraptown | Learned location of Extension (-4) 679 | -9/Scraptown | Received an X-ray algorithm 832 | -9/Scraptown | Scanned Subdweller tech in exchange for log data 834 | -9/Scraptown | Learned location of 2 exits from Research 844 | -9/Scraptown | Discovered new exit (range 11) 895 | -9/Scraptown | Visited Comm Corps 929 | -9/Scraptown | Visited Assassins FH 948 | -9/Scraptown | Visited Cyclists 975 | -9/Scraptown | Visited Spacefarers 1016 | -9/Scraptown | Visited Shadow of the Wyrm 1037 | -9/Scraptown | Visited UFD Registry 1037 | -9/Scraptown | Registered with UFD as "Gravsplitter" 1049 | -9/Scraptown | Visited Awakened 1120 | -9/Scraptown | Entered Cyclist Reading Room 1251 | -9/Scraptown | Visited Scrap Suit Storage 1264 | -9/Scraptown | Found Scrap Suit 1287 | -9/Scraptown | Visited Infowarlord's Domain 1294 | -9/Scraptown | Found Exp. Terrain Scan Processor 1313 | -9/Scraptown | Visited Science Guys 1485 | -9/Scraptown | Visited Research Penetration Think Tank 1508 | -9/Scraptown | Visited Analyses Database 1547 | -9/Scraptown | Met Optimus 1547 | -9/Scraptown | Accepted into 0bPrime 1593 | -9/Scraptown | Visited Junk Repository 1634 | -9/Scraptown | Visited Cartography Club 1696 | -9/Scraptown | Civil war broke out across Scraptown 1716 | -9/Scraptown | Found Deep Structural Scanner 1782 | -9/Scraptown | Optimus destroyed in the chaos of civil war 1813 | -9/Scraptown | Lost 20 allies 1930 | -9/Scraptown | Learned location of Recycling (-9) 1930 | -9/Scraptown | Learned 12 Materials zone layouts 1930 | -9/Scraptown | Learned 16 Factory zone layouts 1930 | -9/Scraptown | Learned 12 Research zone layouts 1930 | -9/Scraptown | Learned 4 Recycling zone layouts 1930 | -9/Scraptown | Learned 8 Lower Caves zone layouts 1930 | -9/Scraptown | Learned 16 Upper Caves zone layouts 1930 | -9/Scraptown | Learned 24 Upper Caves zone layouts 1930 | -9/Scraptown | Learned 20 Proximity Caves zone layouts 1930 | -9/Scraptown | Learned 4 Hub_04(d) zone layouts 1930 | -9/Scraptown | Learned Research emergency access door positions 1930 | -9/Scraptown | Learned location of 1 exit from Research 1930 | -9/Scraptown | Learned location of 2 exits from Research 1930 | -9/Scraptown | Learned location of 1 exit from Upper Caves 1930 | -9/Scraptown | Identified exit to Factory 2009 | -9/Scraptown | Visited Derelict Rescue Squad 2036 | -9/Scraptown | Core integrity fell below 50% 2062 | -9/Scraptown | Lost 10 allies 2085 | -9/Scraptown | Core integrity fell below 20% 2097 | -9/Scraptown | Destroyed by R3-349(h) with Bolt Gun Last Messages --------------- 02078_ Bolt penetrates Wall. 02079_ Slug penetrates Wall. 02080_ Helical Railgun destroyed. 02081_ Wall collapses. 02081_ Bolt penetrates Wall. 02082_ Machine disabled. 02084_ Penetrated by Bolt. 02084_ E0-4H5(j) knocked back. 02086_ Assault Cannon destroyed. 02086_ Bolt penetrates Wall. 02086_ Penetrated by Bolt. 02089_ Dropped Rocket Booster. 02090_ Dropped Lrg. Storage Unit. 02090_ Acquired Rocket Booster. 02091_ Cooling System destroyed. 02091_ Penetrated by Bolt. 02092_ Dropped Scrap Suit. 02093_ Acquired 61 matter. 02094_ Thermic Laser destroyed. 02094_ Penetrated by Bolt. Map ----- +----------------------------------------------------+ | ?????????????????????????????????????????????????? | | ?????????????????????????????????????????????????? | | ?????????????????????????????????????????????????? | | ????????????????????????????????????????